bitfinex-derivatives/quotes_BNBF0:USTF0_20250807
["timestamp","ask_amount","ask_price","bid_price","bid_amount"]
[1754573347501,0.83012961,776.37,775.61,0.22401751]
[1754573347696,0.83012961,776.36,775.61,0.22401751]
[1754573347897,0.83012961,776.35,775.61,0.22401751]
[1754573348099,0.83012961,776.34,775.61,0.22401751]
[1754573348402,0.8,776.48,775.61,0.22401751]
[1754573348699,0.83087193,776.47,775.61,0.22401751]
[1754573348898,0.83087193,776.46,775.61,0.22401751]
[1754573349202,0.83087193,776.45,775.61,0.22401751]
[1754573349405,0.83087193,776.44,775.61,0.22401751]
[1754573349702,0.83087193,776.43,775.61,0.22401751]
[1754573349900,0.83087193,776.42,775.61,0.22401751]
[1754573350104,0.83087193,776.41,775.61,0.22401751]
[1754573350303,0.83087193,776.4,775.61,0.22401751]
[1754573350600,0.83087193,776.39,775.61,1.08443685]
[1754573350799,0.83087193,776.39,775.62,0.86041934]
[1754573351003,0.83166244,776.38,775.62,0.86041934]
[1754573351298,0.83166244,776.37,775.62,0.86041934]
[1754573351502,0.83166244,776.36,775.63,0.86041934]
[1754573351703,0.83166244,776.35,775.63,0.86041934]
[1754573351905,0.83166244,776.34,775.63,0.86041934]
[1754573352205,0.83166244,776.33,775.63,0.86041934]
[1754573352404,0.83166244,776.32,775.66,0.86041934]
[1754573352604,0.83166244,776.31,775.61,1.08443685]
[1754573352800,0.86270881,776.43,775.61,1.08443685]
[1754573353101,0.83255438,776.42,775.61,1.08443685]
[1754573353303,0.83255438,776.41,775.61,1.08443685]
[1754573353606,0.83255438,776.4,775.62,0.86041934]
[1754573354501,0.86270881,776.39,775.64,0.86041934]
[1754573354700,0.83255438,776.38,775.64,0.86041934]
[1754573355502,1.69526319,776.38,775.65,0.86041934]
[1754573355804,0.83255438,776.37,775.65,0.86041934]
[1754573356502,0.83255438,776.37,775.61,0.22401751]
[1754573356503,1.69526319,776.37,775.67,0.86041934]
[1754573356802,0.83255438,776.36,775.67,0.86041934]
[1754573357002,0.83411548,776.35,775.65,0.86041934]
[1754573357205,0.83411548,776.34,775.65,0.86041934]
[1754573357408,0.83411548,776.33,775.65,0.86041934]
[1754573357605,0.83411548,776.32,775.65,0.86041934]
[1754573357809,0.83411548,776.31,775.65,0.86041934]
[1754573358108,0.83411548,776.3,775.65,0.86041934]
[1754573358305,0.83411548,776.29,775.65,0.86041934]
[1754573358610,0.83411548,776.28,775.65,0.86041934]
[1754573358807,0.83411548,776.27,775.65,0.86041934]
[1754573359006,0.83411548,776.26,775.65,0.86041934]
[1754573359210,0.83411548,776.25,775.66,0.86041934]
[1754573359408,0.86270881,776.38,775.66,0.86041934]
[1754573359709,0.83461179,776.37,775.66,0.86041934]
[1754573359906,0.83461179,776.36,775.61,0.22401751]
[1754573360214,0.83466092,776.35,775.61,0.22401751]
[1754573360406,0.83466092,776.34,775.61,0.22401751]
[1754573360710,0.83466092,776.33,775.61,0.22401751]
[1754573360906,0.83466092,776.32,775.61,0.22401751]
[1754573361110,0.83466092,776.31,775.61,0.22401751]
[1754573361310,0.83470239,776.3,775.61,1.08443685]
[1754573361507,0.83470239,776.29,775.61,1.08443685]
[1754573361712,0.83470239,776.28,775.61,1.08443685]
[1754573361907,0.83470239,776.27,775.61,0.86041934]
[1754573362114,0.83470239,776.26,775.61,0.86041934]
[1754573362413,0.83470239,776.25,775.62,0.86041934]
[1754573362608,0.83470239,776.24,775.62,0.86041934]
[1754573362812,1.114,776.32,775.7,0.86041934]
[1754573362813,0.83470239,776.23,775.7,0.86041934]
[1754573363010,0.83470239,776.22,775.7,0.86041934]
[1754573363215,0.83470239,776.21,775.7,0.86041934]
[1754573363415,0.83470239,776.2,775.65,0.86041934]
[1754573363615,0.83470239,776.19,775.63,0.86041934]
[1754573363816,0.83470239,776.18,775.63,0.86041934]
[1754573364016,0.83470239,776.17,775.61,0.86041934]
[1754573364214,0.83470239,776.16,775.58,0.86041934]
[1754573364517,0.83470239,776.15,775.59,0.86041934]
[1754573364816,0.83470239,776.14,775.59,0.86041934]
[1754573365015,0.83470239,776.13,775.59,0.86041934]
[1754573365214,0.83470239,776.12,775.59,0.86041934]
[1754573365417,0.83470239,776.11,775.59,0.86041934]
[1754573365616,0.83470239,776.1,775.59,0.86041934]
[1754573365819,0.83470239,776.09,775.59,0.86041934]
[1754573366020,0.83470239,776.08,775.59,0.86041934]
[1754573366315,0.83461245,776.07,775.58,0.86041934]
[1754573366520,0.83461245,776.06,775.59,0.86041934]
[1754573366719,0.83461245,776.05,775.59,0.86041934]
[1754573366921,0.86270881,776.19,775.55,0.86041934]
[1754573367116,0.83452323,776.18,775.55,0.86041934]
[1754573367317,0.83452323,776.17,775.55,0.86041934]
[1754573367521,0.83452323,776.16,775.55,0.86041934]
[1754573367717,0.83452323,776.15,775.55,0.86041934]
[1754573368020,0.83452323,776.14,775.55,0.86041934]
[1754573368219,0.83452323,776.13,775.55,0.86041934]
[1754573368423,0.83452323,776.12,775.54,1.08464109]
[1754573368721,0.83452323,776.11,775.54,1.08464109]
[1754573369022,0.83452323,776.1,775.54,1.08464109]
[1754573369219,0.86270881,776.19,775.54,1.08464109]
[1754573369518,0.83439486,776.18,775.54,1.08464109]
[1754573369720,0.83439486,776.17,775.54,1.08464109]
[1754573370022,0.83439486,776.16,775.54,1.08464109]
[1754573370221,0.83439486,776.15,775.54,0.22422175]
[1754573370421,0.83439486,776.14,775.54,0.22422175]
[1754573370619,0.83439486,776.13,775.54,0.22422175]
[1754573370824,0.83439486,776.12,775.54,1.08464109]
[1754573371020,0.83439486,776.11,775.54,1.08464109]
[1754573371225,0.83439486,776.1,775.54,1.08464109]
[1754573371524,0.83439486,776.09,775.54,0.22422175]
[1754573371723,0.86270881,776.16,775.54,0.22422175]
[1754573371930,0.83402137,776.15,775.54,0.22422175]
[1754573372123,0.83402137,776.14,775.54,0.22422175]
[1754573372327,0.83402137,776.13,775.54,0.22422175]
[1754573372528,0.83402137,776.12,775.58,0.86041934]
[1754573372726,0.86270881,776.23,775.58,0.86041934]
[1754573372928,0.83390532,776.22,775.58,0.86041934]
[1754573373128,0.83390532,776.21,775.61,0.86041934]
[1754573373329,0.83390532,776.2,775.61,0.86041934]
[1754573373529,0.83390532,776.19,775.61,0.86041934]
[1754573373729,0.86270881,776.26,775.61,0.86041934]
[1754573373929,0.83387016,776.25,775.61,0.86041934]
[1754573374130,0.83387016,776.24,775.62,0.86041934]
[1754573374332,0.83387016,776.23,775.62,0.86041934]
[1754573374526,0.83387016,776.22,775.62,0.86041934]
[1754573374825,0.83387016,776.21,775.62,0.86041934]
[1754573375026,0.83387016,776.2,775.62,0.86041934]
[1754573375225,0.83387016,776.19,775.62,0.86041934]
[1754573375431,0.86270881,776.25,775.62,0.86041934]
[1754573375625,0.83387584,776.24,775.62,0.86041934]
[1754573375828,0.83387584,776.23,775.62,0.86041934]
[1754573376027,0.83387584,776.22,775.62,0.86041934]
[1754573376228,0.83387584,776.21,775.62,0.86041934]
[1754573376426,0.83387584,776.2,775.64,0.86041934]
[1754573376627,0.86270881,776.23,775.64,0.86041934]
[1754573377130,0.86270881,776.29,775.69,0.86041934]
[1754573377327,0.83381103,776.28,775.69,0.86041934]
[1754573377528,0.83381103,776.27,775.69,0.86041934]
[1754573377726,0.83381103,776.26,775.69,0.86041934]
[1754573377930,0.83381103,776.25,775.69,0.86041934]
[1754573378126,0.83381103,776.24,775.69,0.86041934]
[1754573378331,0.83380862,776.23,775.69,0.86041934]
[1754573378527,0.86270881,776.29,775.69,0.86041934]
[1754573378727,0.8337894,776.28,775.69,0.86041934]
[1754573378929,0.86270881,776.29,775.69,0.86041934]
[1754573378930,0.8337894,776.27,775.69,0.86041934]
[1754573379228,0.8337894,776.26,775.69,0.86041934]
[1754573379430,0.8337894,776.25,775.69,0.86041934]
[1754573379629,0.8337894,776.24,775.69,0.86041934]
[1754573379833,0.8337894,776.23,775.69,0.86041934]
[1754573380028,0.86270881,776.29,775.69,0.86041934]
[1754573380228,0.83379366,776.28,775.69,0.86041934]
[1754573380432,0.83379366,776.27,775.69,0.86041934]
[1754573380633,0.83379366,776.26,775.69,0.86041934]
[1754573380831,0.83379366,776.25,775.69,0.86041934]
[1754573381136,0.83379366,776.24,775.69,0.86041934]
[1754573381335,0.86270881,776.3,775.69,0.86041934]
[1754573381531,1.69650417,776.29,775.69,0.86041934]
[1754573381733,0.83379536,776.28,775.69,0.86041934]
[1754573382036,0.83379536,776.27,775.69,0.86041934]
[1754573382236,0.83379536,776.26,775.69,0.86041934]
[1754573382433,0.83379536,776.25,775.69,0.86041934]
[1754573382633,0.83379536,776.24,775.69,0.86041934]
[1754573382831,0.86270881,776.29,775.69,0.86041934]
[1754573383037,0.83379422,776.28,775.69,0.86041934]
[1754573383333,0.83379422,776.27,775.69,0.86041934]
[1754573383533,0.83379422,776.26,775.69,0.86041934]
[1754573383833,0.83379422,776.25,775.68,0.86041934]
[1754573384034,0.83379422,776.24,775.68,0.86041934]
[1754573384237,0.86270881,776.31,775.68,0.86041934]
[1754573384438,0.83381403,776.3,775.68,0.86041934]
[1754573384633,0.83381403,776.29,775.68,0.86041934]
[1754573384839,0.83381403,776.28,775.68,0.86041934]
[1754573385036,0.83381403,776.27,775.68,0.86041934]
[1754573385234,0.83381403,776.26,775.68,0.86041934]
[1754573385434,0.83381403,776.25,775.67,0.86041934]
[1754573385637,0.86270881,776.32,775.67,0.86041934]
[1754573385941,0.83377759,776.31,775.67,0.86041934]
[1754573386141,0.83377759,776.3,775.67,0.86041934]
[1754573386337,0.83377759,776.29,775.68,0.86041934]
[1754573386538,0.83377759,776.28,775.67,0.86041934]
[1754573386836,0.83377759,776.27,775.67,0.86041934]
[1754573387041,0.83377759,776.26,775.67,0.86041934]
[1754573387241,0.83377759,776.26,775.68,0.86041934]
[1754573387638,0.83378598,776.25,775.68,0.86041934]
[1754573387841,0.83378598,776.24,775.68,0.86041934]
[1754573388038,1.113,776.27,775.68,0.86041934]
[1754573388245,0.83378602,776.26,775.68,0.86041934]
[1754573388442,0.83378602,776.25,775.68,0.86041934]
[1754573388643,0.83378602,776.24,775.68,0.86041934]
[1754573388838,1.113,776.27,775.68,0.86041934]
[1754573389038,0.83379003,776.26,775.68,0.86041934]
[1754573389342,0.83379003,776.25,775.68,0.86041934]
[1754573389538,0.83379003,776.24,775.68,0.86041934]
[1754573389737,1.113,776.27,775.68,0.86041934]
[1754573389943,0.83379566,776.26,775.68,0.86041934]
[1754573390143,1.113,776.27,775.68,0.86041934]
[1754573390144,0.83379566,776.25,775.68,0.86041934]
[1754573390338,0.83379566,776.24,775.68,0.86041934]
[1754573390538,1.113,776.27,775.68,0.86041934]
[1754573390943,0.83380137,776.26,775.68,0.86041934]
[1754573391144,0.83380137,776.25,775.68,0.86041934]
[1754573391344,1.113,776.27,775.67,0.86041934]
[1754573391545,0.83380715,776.26,775.67,0.86041934]
[1754573391742,0.83380715,776.25,775.67,0.86041934]
[1754573391941,1.113,776.27,775.67,0.86041934]
[1754573392141,0.8338071,776.26,775.67,0.86041934]
[1754573392341,0.8338071,776.25,775.67,0.86041934]
[1754573392542,1.113,776.27,775.67,0.86041934]
[1754573392743,0.83381294,776.26,775.67,0.86041934]
[1754573392945,0.83381294,776.25,775.67,0.86041934]
[1754573393142,0.83383057,776.24,775.67,0.86041934]
[1754573393347,1.113,776.27,775.67,0.86041934]
[1754573393543,0.83383057,776.26,775.68,0.86041934]
[1754573393743,0.83381885,776.25,775.68,0.86041934]
[1754573393947,0.83381885,776.24,775.68,0.86041934]
[1754573394149,1.113,776.27,775.68,0.86041934]
[1754573394344,0.8338332,776.26,775.68,0.86041934]
[1754573394548,0.8338332,776.25,775.68,0.86041934]
[1754573394844,1.113,776.27,775.68,0.86041934]
[1754573395043,1.113,776.27,775.58,0.86041934]
[1754573395244,1.113,776.27,775.59,0.86041934]
[1754573396446,1.113,776.27,775.6,0.86041934]
[1754573396751,1.113,776.27,775.62,0.86041934]
[1754573398046,1.113,776.27,775.69,0.86041934]
[1754573398250,1.113,776.27,775.78,0.86041934]
[1754573399049,1.113,776.27,775.54,0.22422175]
[1754573399050,1.113,776.27,775.79,0.86041934]
[1754573399349,1.113,776.27,775.78,0.86041934]
[1754573402247,1.113,776.27,775.77,0.86041934]
[1754573402555,1.113,776.27,775.76,0.86041934]
[1754573402748,1.113,776.27,775.77,0.86041934]
[1754573404352,0.715,776.26,775.77,0.86041934]
[1754573404652,0.715,776.26,775.76,0.86041934]
[1754573404948,0.715,776.26,775.7,0.86041934]
[1754573405153,0.715,776.26,775.54,0.22422175]
[1754573405154,0.715,776.26,775.71,0.86041934]
[1754573405348,0.715,776.26,775.72,0.86041934]
[1754573407455,0.715,776.26,775.73,0.86041934]
[1754573407754,0.715,776.26,775.74,0.86041934]
[1754573407956,0.715,776.26,775.76,0.86041934]
[1754573408150,0.715,776.26,775.75,0.86041934]
[1754573408356,0.715,776.26,775.76,0.86041934]
[1754573409257,0.715,776.26,775.75,0.86041934]
[1754573409460,0.715,776.26,775.76,0.86041934]
[1754573411261,0.715,776.26,775.75,0.86041934]
[1754573411757,0.715,776.26,775.76,0.86041934]
[1754573412961,0.715,776.26,775.75,0.86041934]
[1754573413367,0.715,776.26,775.76,0.86041934]
[1754573414466,0.715,776.26,775.54,0.22422175]
[1754573414467,0.715,776.26,775.75,0.86041934]
[1754573416068,0.715,776.26,775.78,0.86041934]
[1754573417163,0.715,776.26,775.77,0.86041934]
[1754573419368,0.715,776.26,775.73,0.86041934]
[1754573420164,0.715,776.26,775.72,0.86041934]
[1754573421069,0.715,776.26,775.71,0.86041934]
[1754573421270,0.715,776.26,775.72,0.86041934]
[1754573421966,0.715,776.26,775.71,0.86041934]
[1754573423274,0.715,776.26,775.7,0.86041934]
[1754573423766,0.715,776.26,775.69,0.86041934]
[1754573424368,0.715,776.26,775.7,0.86041934]
[1754573425270,0.715,776.26,775.73,0.86041934]
[1754573425470,0.715,776.26,775.72,0.86041934]
[1754573425672,0.715,776.26,775.54,1.37633155]
[1754573425673,0.715,776.26,775.73,0.86041934]
[1754573426768,0.715,776.26,775.72,0.86041934]
[1754573427366,0.715,776.26,775.74,0.86041934]
[1754573427572,0.715,776.26,775.71,0.86041934]
[1754573427970,0.715,776.26,775.72,0.86041934]
[1754573428373,0.715,776.26,775.7,0.86041934]
[1754573428669,0.715,776.26,775.71,0.86041934]
[1754573429273,0.715,776.26,775.74,0.86041934]
[1754573429474,0.715,776.26,775.71,0.86041934]
[1754573429868,0.715,776.26,775.74,0.86041934]
[1754573430273,0.715,776.26,775.75,0.86041934]
[1754573430569,0.715,776.26,775.72,0.86041934]
[1754573431373,0.715,776.26,775.71,0.86041934]
[1754573431571,0.715,776.26,775.72,0.86041934]
[1754573432170,0.715,776.26,775.73,0.86041934]
[1754573432671,0.715,776.26,775.72,0.86041934]
[1754573433777,0.715,776.26,775.54,0.22422175]
[1754573433778,0.715,776.26,775.71,0.86041934]
[1754573434073,0.715,776.26,775.54,1.37633155]
[1754573434074,0.715,776.26,775.72,0.86041934]
[1754573434277,0.715,776.26,775.73,0.86041934]
[1754573434778,0.715,776.26,775.72,0.86041934]
[1754573435776,0.715,776.26,775.69,0.86041934]
[1754573436176,0.715,776.26,775.7,0.86041934]
[1754573436880,0.715,776.26,775.71,0.86041934]
[1754573439580,0.715,776.26,775.72,0.86041934]
[1754573439782,0.715,776.26,775.73,0.86041934]
[1754573440981,0.715,776.26,775.74,0.86041934]
[1754573441485,0.86270881,776.4,775.75,0.86041934]
[1754573441686,1.69673043,776.39,775.75,0.86041934]
[1754573441986,0.83402162,776.38,775.75,0.86041934]
[1754573442186,0.83402162,776.37,775.75,0.86041934]
[1754573442385,0.83405614,776.36,775.75,0.86041934]
[1754573442586,0.83405614,776.35,775.75,0.86041934]
[1754573442786,0.83405614,776.34,775.74,0.86041934]
[1754573443086,0.83405614,776.33,775.76,0.86041934]
[1754573443283,0.83405614,776.32,775.77,0.86041934]
[1754573443490,0.83405614,776.31,775.77,0.86041934]
[1754573443688,0.83408627,776.3,775.77,0.86041934]
[1754573443886,0.86270881,776.42,775.77,0.86041934]
[1754573444086,0.83408627,776.41,775.77,0.86041934]
[1754573444288,0.83408627,776.4,775.78,0.86041934]
[1754573445188,1.69679508,776.4,775.78,0.86041934]
[1754573445385,0.83408627,776.39,775.78,0.86041934]
[1754573446290,1.69679508,776.39,775.78,0.86041934]
[1754573446489,0.83408627,776.38,775.78,0.86041934]
[1754573447089,0.83408627,776.37,775.78,0.86041934]
[1754573447288,0.83408627,776.36,775.78,0.86041934]
[1754573449786,0.83428916,776.36,775.78,0.86041934]
[1754573449990,0.86270881,776.41,775.78,0.86041934]
[1754573450188,1.69709708,776.4,775.78,0.86041934]
[1754573450392,0.83438827,776.39,775.78,0.86041934]
[1754573450593,0.83438827,776.39,775.79,0.86041934]
[1754573450795,0.83438827,776.38,775.79,0.86041934]
[1754573450994,0.83438827,776.37,775.79,0.86041934]
[1754573451290,0.83438827,776.36,775.79,0.86041934]
[1754573451592,0.83438827,776.35,775.79,0.86041934]
[1754573451891,0.83438827,776.34,775.79,0.86041934]
[1754573452092,0.83438827,776.33,775.79,0.86041934]
[1754573452292,0.83438827,776.32,775.8,0.86041934]
[1754573452493,0.83438827,776.31,775.8,0.86041934]
[1754573452692,0.86270881,776.4,775.8,0.86041934]
[1754573452997,0.83452362,776.39,775.8,0.86041934]
[1754573453198,0.83452362,776.38,775.8,0.86041934]
[1754573453497,0.86270881,776.4,775.8,0.86041934]
[1754573453498,0.83452362,776.37,775.8,0.86041934]
[1754573453694,0.83452362,776.36,775.8,0.86041934]
[1754573453895,0.83452362,776.35,775.8,0.86041934]
[1754573454093,0.83452362,776.34,775.8,0.86041934]
[1754573454297,0.83452362,776.33,775.8,0.86041934]
[1754573454495,0.83452362,776.32,775.8,0.86041934]
[1754573454695,0.83452362,776.31,775.8,0.86041934]
[1754573454998,0.83452362,776.3,775.8,0.86041934]
[1754573455293,0.86270881,776.39,775.81,0.86041934]
[1754573455494,0.83473802,776.38,775.81,0.86041934]
[1754573455693,0.83473802,776.37,775.81,0.86041934]
[1754573455995,0.83473802,776.36,775.81,0.86041934]
[1754573456196,0.83473802,776.35,775.81,0.86041934]
[1754573456397,0.83473802,776.34,775.81,0.86041934]
[1754573456597,0.83473802,776.33,775.81,0.86041934]
[1754573456896,0.83473802,776.32,775.81,0.86041934]
[1754573457195,0.83473802,776.31,775.81,0.86041934]
[1754573457400,0.83473802,776.3,775.81,0.86041934]
[1754573457601,0.83473802,776.29,775.81,0.86041934]
[1754573457801,0.86270881,776.38,775.81,0.86041934]
[1754573458002,0.83488165,776.37,775.81,0.86041934]
[1754573458198,0.83488165,776.36,775.81,0.86041934]
[1754573458402,0.86270881,776.33,775.84,0.86041934]
[1754573458604,0.83488165,776.32,775.84,0.86041934]
[1754573458999,0.86270881,776.33,775.84,0.86041934]
[1754573459204,0.83496318,776.32,775.84,0.86041934]
[1754573459503,0.83496318,776.31,775.84,0.86041934]
[1754573459703,0.83496318,776.3,775.85,0.86041934]
[1754573459903,0.83496318,776.29,775.85,0.86041934]
[1754573460100,0.83496318,776.28,775.85,0.86041934]
[1754573460304,0.83496318,776.27,775.83,0.86041934]
[1754573460605,0.83496318,776.26,775.79,0.86041934]
[1754573460799,0.83496318,776.26,775.65,1.1521098]
[1754573460800,0.83496318,776.25,775.7,0.86041934]
[1754573460999,0.722,776.48,775.63,0.86041934]
[1754573461000,0.86270881,776.22,775.63,0.86041934]
[1754573461201,0.83496318,776.21,775.63,0.86041934]
[1754573461602,0.83496318,776.21,775.61,0.86041934]
[1754573461800,0.83496318,776.2,775.61,0.86041934]
[1754573462003,0.83496318,776.19,775.62,0.86041934]
[1754573462198,0.83496318,776.18,775.62,0.86041934]
[1754573462399,0.83496318,776.17,775.61,0.86041934]
[1754573462600,0.83496318,776.16,775.61,0.86041934]
[1754573462803,0.83496318,776.15,775.54,0.22422175]
[1754573463002,0.83496318,776.14,775.54,0.22422175]
[1754573463204,0.86827424,776.24,775.61,0.8659343]
[1754573463401,0.83460295,776.23,775.61,0.8659343]
[1754573463602,0.83460295,776.22,775.54,0.22422175]
[1754573463804,0.83460295,776.21,775.54,0.22422175]
[1754573464003,0.83460295,776.2,775.54,0.22422175]
[1754573464199,0.83460295,776.19,775.54,0.22422175]
[1754573464403,0.83460295,776.18,775.54,0.22422175]
[1754573464604,0.83460295,776.17,775.54,0.22422175]
[1754573464900,0.83460295,776.16,775.54,0.22422175]
[1754573465100,0.83460295,776.15,775.54,0.22422175]
[1754573465304,0.722,776.48,775.54,0.22422175]
[1754573465501,0.86829314,776.23,775.61,0.86595331]
[1754573465704,0.83432142,776.22,775.54,0.22422175]
[1754573465903,0.83432142,776.21,775.54,0.22422175]
[1754573466104,0.83432142,776.2,775.54,0.22422175]
[1754573466408,0.83432142,776.19,775.61,0.86583045]
[1754573466607,0.83432142,776.18,775.58,0.86583045]
[1754573466808,0.83432142,776.17,775.58,0.86583045]
[1754573467004,0.83427447,776.16,775.55,0.86583045]
[1754573467208,1.70254826,776.15,775.54,0.22422175]
[1754573467407,0.83427447,776.14,775.54,0.22422175]
[1754573468414,0.83396906,776.13,775.54,0.22422175]
[1754573468607,0.83396906,776.12,775.54,0.22422175]
[1754573468812,0.83396906,776.11,775.54,0.22422175]
[1754573469012,0.83396906,776.1,775.54,0.22422175]
[1754573469208,0.83396906,776.09,775.54,0.22422175]
[1754573469406,0.839,776.11,775.54,0.22422175]
[1754573469608,0.83372258,776.1,775.54,0.22422175]
[1754573469810,0.83372258,776.09,775.54,0.22422175]
[1754573470114,0.839,776.11,775.54,0.22422175]
[1754573470310,0.83351803,776.1,775.54,0.22422175]
[1754573470613,0.839,776.11,775.54,0.22422175]
[1754573470812,0.83351803,776.1,775.54,0.22422175]
[1754573471011,0.839,776.11,775.54,0.22422175]
[1754573475515,0.83291745,776.1,775.3,0.86583045]
[1754573475716,0.83291745,776.09,775.35,0.22427666]
[1754573475916,0.83291745,776.08,775.35,0.22427666]
[1754573476117,0.83291745,776.07,775.35,0.22427666]
[1754573476317,0.83291745,776.06,775.35,0.22427666]
[1754573476517,0.83291745,776.05,775.35,0.22427666]
[1754573476713,0.83291745,776.04,775.35,0.22427666]
[1754573476918,0.83291745,776.03,775.35,0.22427666]
[1754573477218,0.839,776.11,775.35,0.22427666]
[1754573477414,0.83234361,776.1,775.35,0.22427666]
[1754573477615,0.83234361,776.09,775.35,0.22427666]
[1754573477814,0.83234361,776.08,775.35,0.22427666]
[1754573478018,0.839,776.11,775.35,0.22427666]
[1754573478218,0.83206653,776.1,775.35,0.22427666]
[1754573478421,0.83206653,776.09,775.35,0.22427666]
[1754573478715,0.83206653,776.08,775.35,0.22427666]
[1754573478916,0.839,776.11,775.35,0.22427666]
[1754573479116,0.83206687,776.1,775.35,0.22427666]
[1754573479318,0.83206687,776.09,775.35,0.22427666]
[1754573479516,0.83206687,776.08,775.35,0.22427666]
[1754573479719,0.839,776.11,775.35,0.22427666]
[1754573480017,0.83184376,776.1,775.35,0.22427666]
[1754573480217,0.83163832,776.09,775.35,0.22427666]
[1754573480419,0.83163832,776.08,775.35,0.22427666]
[1754573480620,0.839,776.11,775.35,0.22427666]
[1754573480917,0.83164141,776.1,775.35,0.22427666]
[1754573481117,0.839,776.11,775.35,0.22427666]
[1754573482715,0.83136437,776.1,775.35,0.22427666]
[1754573482921,0.839,776.11,775.35,0.22427666]
[1754573483915,0.83124811,776.1,775.35,0.22427666]
[1754573484115,0.83124811,776.09,775.35,0.22427666]
[1754573484316,0.83124811,776.08,775.35,0.22427666]
[1754573484518,0.83124811,776.07,775.35,0.22427666]
[1754573484718,0.83124811,776.06,775.35,0.22427666]
[1754573484917,0.83124811,776.05,775.35,0.22427666]
[1754573485117,0.83124811,776.04,775.35,0.22427666]
[1754573485317,0.83124811,776.03,775.35,0.22427666]
[1754573485619,0.83124811,776.02,775.09,0.86583045]
[1754573485818,0.83124811,776.01,775.04,0.86583045]
[1754573486018,0.86827379,776.06,775.26,0.22431425]
[1754573486220,0.83109837,776.05,775.01,0.86583045]
[1754573486417,0.86827379,776.03,775.17,0.22433666]
[1754573486618,0.86827379,775.96,775.17,0.22433666]
[1754573486818,0.83099276,775.95,775.17,0.22433666]
[1754573487021,0.83099276,775.94,775.17,0.22433666]
[1754573487321,0.83099276,775.93,775.17,0.22433666]
[1754573487520,0.83099276,775.92,775.17,0.22433666]
[1754573487723,0.83099276,775.91,775.17,0.22433666]
[1754573487923,0.83099276,775.9,775.17,0.22433666]
[1754573488121,0.83099276,775.89,775.17,0.22433666]
[1754573488326,0.83099276,775.88,775.17,0.22433666]
[1754573488623,0.83099276,775.87,775.17,0.22433666]
[1754573488824,0.83099276,775.86,775.17,0.22433666]
[1754573489023,0.83099276,775.85,775.17,0.22433666]
[1754573489225,0.83099276,775.84,775.17,0.22433666]
[1754573489424,0.83099276,775.83,775.17,0.22433666]
[1754573489622,0.83099276,775.82,775.17,0.22433666]
[1754573489825,0.83099276,775.81,775.17,0.22433666]
[1754573490025,0.83099276,775.8,775.17,0.22433666]
[1754573490225,0.83099276,775.79,775.17,0.22433666]
[1754573490423,0.83099276,775.78,775.17,0.22433666]
[1754573490621,0.86827379,776.05,775.17,0.22433666]
[1754573490921,0.82970556,776.04,775.17,0.22433666]
[1754573491226,0.82970556,776.03,775.17,0.22433666]
[1754573491422,0.82970556,776.02,775.17,0.22433666]
[1754573491722,0.82970556,776.01,775.17,0.22433666]
[1754573491920,0.82970556,776.0,775.17,0.22433666]
[1754573492119,0.82970556,775.99,775.17,0.22433666]
[1754573492325,0.82970556,775.98,775.17,0.22433666]
[1754573492525,0.82970556,775.97,775.17,0.22433666]
[1754573492723,0.82970556,775.96,775.17,0.22433666]
[1754573492927,0.82970556,775.95,775.17,0.22433666]
[1754573493227,0.82970556,775.94,775.17,0.22433666]
[1754573493528,0.82970556,775.93,775.17,0.22433666]
[1754573493726,0.82970556,775.92,775.17,0.22433666]
[1754573493927,0.82970556,775.91,775.17,0.22433666]
[1754573494226,0.82970556,775.9,775.17,0.22433666]
[1754573494522,0.82970556,775.89,775.17,0.22433666]
[1754573494722,0.82970556,775.88,775.17,0.22433666]
[1754573494926,0.82970556,775.87,775.17,0.22433666]
[1754573495121,0.839,776.11,775.17,0.22433666]
[1754573495422,0.82884444,776.1,775.17,0.22433666]
[1754573495623,0.82884444,776.09,775.17,0.22433666]
[1754573495823,0.82869532,776.08,775.17,0.22433666]
[1754573496026,0.82869532,776.07,775.17,0.22433666]
[1754573496226,0.82869532,776.06,775.17,0.22433666]
[1754573496427,0.82869532,776.05,775.17,0.22433666]
[1754573496628,0.82869532,776.04,775.17,0.22433666]
[1754573496927,0.82869532,776.03,775.17,0.22433666]
[1754573497227,0.82869532,776.02,775.17,0.22433666]
[1754573497425,0.82869532,776.01,775.17,0.22433666]
[1754573497627,0.82869532,776.0,775.17,0.22433666]
[1754573497824,0.82869532,775.99,775.17,0.22433666]
[1754573498025,0.82869532,775.98,775.17,0.22433666]
[1754573498331,0.82832381,775.97,775.17,0.22433666]
[1754573498625,0.82832381,775.96,775.17,0.22433666]
[1754573498829,0.82832381,775.95,775.17,0.22433666]
[1754573499025,0.82832381,775.94,775.17,0.22433666]
[1754573499231,0.82832381,775.93,775.17,0.22433666]
[1754573499429,0.82832381,775.92,775.17,0.22433666]
[1754573499725,0.839,776.11,775.17,0.22433666]